[Event "*** SCC Grand Prix: Titled Tuesday Blitz"]
[Site "Chess.com"]
[Date "2020.07.21"]
[Round "4"]
[White "Gloomy_Wanderer"]
[Black "Zurability"]
[Result "0-1"]
[WhiteElo "2691"]
[BlackElo "2581"]
[TimeControl "180+1"]
[EndTime "10:38:06 PDT"]
[Termination "Zurability won by resignation"]

1. d4 {[%clk 0:03:00.9]} 1... Nf6 {[%clk 0:02:59.2]} 2. Nf3 {[%clk 0:03:00.7]}
2... e6 {[%clk 0:02:59.5]} 3. c4 {[%clk 0:03:00.8]} 3... b6 {[%clk 0:03:00.1]}
4. g3 {[%clk 0:03:00.9]} 4... Bb7 {[%clk 0:03:00.5]} 5. Bg2 {[%clk 0:03:01.2]}
5... Be7 {[%clk 0:02:58.7]} 6. O-O {[%clk 0:03:01.1]} 6... O-O {[%clk
0:02:59.4]} 7. Re1 {[%clk 0:03:01.4]} 7... d5 {[%clk 0:02:59.3]} 8. cxd5 {[%clk
0:03:01.4]} 8... exd5 {[%clk 0:03:00.2]} 9. Nc3 {[%clk 0:03:01.5]} 9... Nbd7
{[%clk 0:02:59.8]} 10. Bf4 {[%clk 0:03:01.5]} 10... Re8 {[%clk 0:02:57.2]} 11.
Rc1 {[%clk 0:03:00.8]} 11... a6 {[%clk 0:02:54.8]} 12. Ne5 {[%clk 0:02:55.1]}
12... Nf8 {[%clk 0:02:54.5]} 13. Bg5 {[%clk 0:02:29.8]} 13... Ne6 {[%clk
0:02:50.4]} 14. Bxf6 {[%clk 0:02:30]} 14... Bxf6 {[%clk 0:02:51.3]} 15. e3
{[%clk 0:02:30.3]} 15... c5 {[%clk 0:02:48.3]} 16. f4 {[%clk 0:02:25.9]} 16...
cxd4 {[%clk 0:02:28.8]} 17. exd4 {[%clk 0:02:25.4]} 17... b5 {[%clk 0:02:29.4]}
18. Kh1 {[%clk 0:02:17.6]} 18... Rc8 {[%clk 0:02:21.5]} 19. Qd3 {[%clk
0:02:06.5]} 19... Qd6 {[%clk 0:01:52.3]} 20. a3 {[%clk 0:01:58.8]} 20... g6
{[%clk 0:01:46.9]} 21. Rcd1 {[%clk 0:01:55.8]} 21... Ng7 {[%clk 0:01:45.4]} 22.
g4 {[%clk 0:01:53.6]} 22... Ne6 {[%clk 0:01:44.3]} 23. Qf3 {[%clk 0:01:45.3]}
23... Bg7 {[%clk 0:01:34.8]} 24. Nxd5 {[%clk 0:01:29.6]} 24... Nxf4 {[%clk
0:01:08.6]} 25. Nf6+ {[%clk 0:00:45.1]} 25... Qxf6 {[%clk 0:00:48.1]} 26. Qxb7
{[%clk 0:00:45.2]} 26... Rc2 {[%clk 0:00:29]} 27. Be4 {[%clk 0:00:37.6]} 27...
Rxb2 {[%clk 0:00:19.7]} 28. Rf1 {[%clk 0:00:37.2]} 28... Rf8 {[%clk 0:00:19.6]}
29. Nf3 {[%clk 0:00:35]} 29... Qe6 {[%clk 0:00:17]} 30. Rg1 {[%clk 0:00:28.5]}
30... Nh3 {[%clk 0:00:17.2]} 31. Rg2 {[%clk 0:00:24.6]} 31... Nf2+ {[%clk
0:00:11.4]} 32. Kg1 {[%clk 0:00:23.8]} 32... Nxd1 {[%clk 0:00:11]} 0-1

[Event "*** SCC Grand Prix: Titled Tuesday Blitz"]
[Site "Chess.com"]
[Date "2020.07.21"]
[Round "4"]
[White "aNaartjieZA"]
[Black "krasavetc"]
[Result "1-0"]
[WhiteElo "2452"]
[BlackElo "2285"]
[TimeControl "180+1"]
[EndTime "10:38:06 PDT"]
[Termination "aNaartjieZA won on time"]

1. e4 {[%clk 0:03:00.9]} 1... c5 {[%clk 0:02:59]} 2. Nf3 {[%clk 0:03:00.9]} 2...
d6 {[%clk 0:02:59.4]} 3. g3 {[%clk 0:03:01.1]} 3... Nf6 {[%clk 0:02:59.1]} 4. d3
{[%clk 0:03:01.4]} 4... g6 {[%clk 0:02:56.8]} 5. Bg2 {[%clk 0:03:01.4]} 5... Bg7
{[%clk 0:02:57.3]} 6. O-O {[%clk 0:03:02]} 6... O-O {[%clk 0:02:57.9]} 7. Re1
{[%clk 0:03:02.6]} 7... e5 {[%clk 0:02:56.6]} 8. c3 {[%clk 0:03:02.8]} 8... Nc6
{[%clk 0:02:56.2]} 9. a3 {[%clk 0:03:02.9]} 9... Bg4 {[%clk 0:02:55.8]} 10. h3
{[%clk 0:03:02.4]} 10... Bxf3 {[%clk 0:02:55.7]} 11. Qxf3 {[%clk 0:03:03.3]}
11... Qe7 {[%clk 0:02:53.1]} 12. b4 {[%clk 0:03:02.9]} 12... b6 {[%clk 0:02:52]}
13. Nd2 {[%clk 0:03:02.4]} 13... Bh6 {[%clk 0:02:45.5]} 14. Nc4 {[%clk
0:03:00.6]} 14... Bxc1 {[%clk 0:02:44.2]} 15. Raxc1 {[%clk 0:03:00.7]} 15... Kg7
{[%clk 0:02:44.5]} 16. b5 {[%clk 0:02:59.1]} 16... Nd8 {[%clk 0:02:42.5]} 17. a4
{[%clk 0:02:58]} 17... Ne6 {[%clk 0:02:36.6]} 18. h4 {[%clk 0:02:57.8]} 18...
Nd7 {[%clk 0:02:33.6]} 19. Ra1 {[%clk 0:02:55.5]} 19... Rab8 {[%clk 0:02:28.9]}
20. a5 {[%clk 0:02:54.2]} 20... Rb7 {[%clk 0:02:22.4]} 21. axb6 {[%clk
0:02:53.4]} 21... axb6 {[%clk 0:02:23.3]} 22. Ra6 {[%clk 0:02:53]} 22... Nc7
{[%clk 0:02:21.3]} 23. Ra3 {[%clk 0:02:52.3]} 23... Nxb5 {[%clk 0:02:20.4]} 24.
Rb3 {[%clk 0:02:52.4]} 24... Nc7 {[%clk 0:02:19.3]} 25. Bh3 {[%clk 0:02:48.6]}
25... b5 {[%clk 0:02:14.3]} 26. Ne3 {[%clk 0:02:48.4]} 26... Nf6 {[%clk
0:02:02.3]} 27. Reb1 {[%clk 0:02:47.3]} 27... Rfb8 {[%clk 0:02:01.4]} 28. h5
{[%clk 0:02:41.8]} 28... h6 {[%clk 0:01:45.3]} 29. hxg6 {[%clk 0:02:40.3]} 29...
fxg6 {[%clk 0:01:46.2]} 30. Qe2 {[%clk 0:02:37.4]} 30... h5 {[%clk 0:01:39.3]}
31. Ng2 {[%clk 0:02:36.1]} 31... d5 {[%clk 0:01:33.6]} 32. exd5 {[%clk
0:02:31.7]} 32... Ncxd5 {[%clk 0:01:33.2]} 33. c4 {[%clk 0:02:25]} 33... Nb4
{[%clk 0:01:21]} 34. cxb5 {[%clk 0:02:23.9]} 34... Rxb5 {[%clk 0:01:21.9]} 35.
Ne3 {[%clk 0:02:23.5]} 35... e4 {[%clk 0:01:19]} 36. Nc4 {[%clk 0:02:22.2]}
36... R5b7 {[%clk 0:01:15.2]} 37. Re1 {[%clk 0:02:17.6]} 37... Nc6 {[%clk
0:01:01.4]} 38. Rxb7 {[%clk 0:02:16]} 38... Rxb7 {[%clk 0:01:02.3]} 39. dxe4
{[%clk 0:02:15.7]} 39... Nd4 {[%clk 0:01:02.8]} 40. Qd1 {[%clk 0:02:15.5]} 40...
Rb4 {[%clk 0:01:01.8]} 41. Nd2 {[%clk 0:02:10.9]} 41... Rb2 {[%clk 0:00:46.6]}
42. Bg2 {[%clk 0:02:09.8]} 42... Ng4 {[%clk 0:00:44.6]} 43. Rf1 {[%clk
0:01:46.5]} 43... Qf7 {[%clk 0:00:43.8]} 44. Nf3 {[%clk 0:01:42.9]} 44... Nxf3+
{[%clk 0:00:34.4]} 45. Bxf3 {[%clk 0:01:41.7]} 45... Ne5 {[%clk 0:00:33.2]} 46.
Bg2 {[%clk 0:01:41.9]} 46... Qf6 {[%clk 0:00:29.2]} 47. Qd5 {[%clk 0:01:37]}
47... c4 {[%clk 0:00:26.5]} 48. Qd4 {[%clk 0:01:35.5]} 48... Nd3 {[%clk
0:00:25.4]} 49. Qxc4 {[%clk 0:01:32.1]} 49... Nxf2 {[%clk 0:00:24.7]} 50. Qc5
{[%clk 0:01:27.3]} 1-0

[Event "*** SCC Grand Prix: Titled Tuesday Blitz"]
[Site "Chess.com"]
[Date "2020.07.21"]
[Round "4"]
[White "PawnEatingZombie"]
[Black "Gandrade2"]
[Result "1-0"]
[WhiteElo "2243"]
[BlackElo "2078"]
[TimeControl "180+1"]
[EndTime "10:38:06 PDT"]
[Termination "PawnEatingZombie won by checkmate"]

1. d4 {[%clk 0:03:00.9]} 1... Nf6 {[%clk 0:02:58.6]} 2. c4 {[%clk 0:03:00.9]}
2... g6 {[%clk 0:02:58.7]} 3. Nc3 {[%clk 0:03:01.2]} 3... Bg7 {[%clk 0:02:59]}
4. e4 {[%clk 0:03:01]} 4... d6 {[%clk 0:02:59.3]} 5. Be2 {[%clk 0:03:01.4]} 5...
O-O {[%clk 0:02:58.4]} 6. Be3 {[%clk 0:03:01.9]} 6... e5 {[%clk 0:02:47.6]} 7.
d5 {[%clk 0:03:00.9]} 7... a5 {[%clk 0:02:45.1]} 8. g4 {[%clk 0:03:00.4]} 8...
Na6 {[%clk 0:02:41.2]} 9. h4 {[%clk 0:02:59.7]} 9... Nd7 {[%clk 0:02:20.7]} 10.
h5 {[%clk 0:02:58]} 10... Ndc5 {[%clk 0:01:57]} 11. f3 {[%clk 0:02:45.1]} 11...
f5 {[%clk 0:01:22]} 12. hxg6 {[%clk 0:02:44.3]} 12... hxg6 {[%clk 0:01:21.9]}
13. gxf5 {[%clk 0:02:44.5]} 13... gxf5 {[%clk 0:01:20.5]} 14. Qd2 {[%clk
0:02:44.1]} 14... f4 {[%clk 0:01:17.1]} 15. Bf2 {[%clk 0:02:42.9]} 15... c6
{[%clk 0:01:01.5]} 16. O-O-O {[%clk 0:02:41.5]} 16... Nb4 {[%clk 0:00:44]} 17.
dxc6 {[%clk 0:02:19.5]} 17... Qb6 {[%clk 0:00:20]} 18. cxb7 {[%clk 0:02:07.6]}
18... Bxb7 {[%clk 0:00:18.2]} 19. Qxd6 {[%clk 0:01:36.2]} 19... Nb3+ {[%clk
0:00:17.8]} 20. axb3 {[%clk 0:01:27.4]} 20... Qxf2 {[%clk 0:00:18.4]} 21. c5
{[%clk 0:00:59.1]} 21... Qe3+ {[%clk 0:00:13.1]} 22. Kb1 {[%clk 0:00:58.6]}
22... Rae8 {[%clk 0:00:08.4]} 23. Bc4+ {[%clk 0:00:57.6]} 23... Rf7 {[%clk
0:00:07.2]} 24. Nh3 {[%clk 0:00:20.9]} 24... Bxe4+ {[%clk 0:00:06.4]} 25. fxe4
{[%clk 0:00:19.1]} 25... Bf8 {[%clk 0:00:02.8]} 26. Qg6+ {[%clk 0:00:17.1]}
26... Kh8 {[%clk 0:00:02.5]} 27. Ng5+ {[%clk 0:00:16.6]} 27... Rh7 {[%clk
0:00:02.3]} 28. Rxh7# {[%clk 0:00:15.8]} 1-0

[Event "*** SCC Grand Prix: Titled Tuesday Blitz"]
[Site "Chess.com"]
[Date "2020.07.21"]
[Round "4"]
[White "knightmare7724"]
[Black "Trickov"]
[Result "1-0"]
[WhiteElo "2599"]
[BlackElo "2360"]
[TimeControl "180+1"]
[EndTime "10:38:08 PDT"]
[Termination "knightmare7724 won on time"]

1. e4 {[%clk 0:03:00.9]} 1... c5 {[%clk 0:02:54.6]} 2. Nf3 {[%clk 0:03:00.9]}
2... d6 {[%clk 0:02:54.4]} 3. d4 {[%clk 0:02:58.2]} 3... Nf6 {[%clk 0:02:53.8]}
4. Nc3 {[%clk 0:02:56.4]} 4... cxd4 {[%clk 0:02:52.5]} 5. Nxd4 {[%clk 0:02:55]}
5... a6 {[%clk 0:02:53]} 6. h3 {[%clk 0:02:54.8]} 6... e5 {[%clk 0:02:49.2]} 7.
Nde2 {[%clk 0:02:55.3]} 7... b5 {[%clk 0:02:47.6]} 8. Bg5 {[%clk 0:02:55.3]}
8... Bb7 {[%clk 0:02:45.7]} 9. Bxf6 {[%clk 0:02:49.5]} 9... Qxf6 {[%clk
0:02:40.8]} 10. Nd5 {[%clk 0:02:49.8]} 10... Qd8 {[%clk 0:02:39.3]} 11. a4
{[%clk 0:02:44]} 11... Nd7 {[%clk 0:02:23.2]} 12. Nec3 {[%clk 0:02:40.4]} 12...
bxa4 {[%clk 0:02:18]} 13. Bc4 {[%clk 0:02:38.9]} 13... Be7 {[%clk 0:02:08.9]}
14. O-O {[%clk 0:02:25.2]} 14... O-O {[%clk 0:02:08.3]} 15. Nxa4 {[%clk
0:02:21.5]} 15... Rc8 {[%clk 0:01:58.6]} 16. b3 {[%clk 0:02:15.9]} 16... Kh8
{[%clk 0:01:46.1]} 17. Qe2 {[%clk 0:02:08.6]} 17... f5 {[%clk 0:01:33.8]} 18.
exf5 {[%clk 0:01:50.1]} 18... Rxf5 {[%clk 0:01:20.5]} 19. Ne3 {[%clk 0:01:47.5]}
19... Rf8 {[%clk 0:01:17.6]} 20. Bxa6 {[%clk 0:01:45.1]} 20... Bxa6 {[%clk
0:01:11.7]} 21. Qxa6 {[%clk 0:01:44]} 21... Nf6 {[%clk 0:00:43.7]} 22. c4 {[%clk
0:01:34.5]} 22... Qc7 {[%clk 0:00:28.8]} 23. Nb6 {[%clk 0:01:28.2]} 23... Rb8
{[%clk 0:00:19.1]} 24. Nbd5 {[%clk 0:01:28.2]} 24... Nxd5 {[%clk 0:00:17.1]} 25.
Nxd5 {[%clk 0:01:29.1]} 25... Qd7 {[%clk 0:00:14.7]} 26. b4 {[%clk 0:01:26.5]}
26... Bd8 {[%clk 0:00:10.7]} 27. Qa7 {[%clk 0:01:17.7]} 27... Rb7 {[%clk
0:00:09.5]} 28. Qa4 {[%clk 0:01:15.7]} 28... Qc8 {[%clk 0:00:03.9]} 29. b5
{[%clk 0:01:11.7]} 29... Rbf7 {[%clk 0:00:02.7]} 30. b6 {[%clk 0:01:07.1]} 30...
Qc5 {[%clk 0:00:01.1]} 31. Qa3 {[%clk 0:00:39]} 1-0

[Event "*** SCC Grand Prix: Titled Tuesday Blitz"]
[Site "Chess.com"]
[Date "2020.07.21"]
[Round "4"]
[White "WildTricks"]
[Black "MiroVlasenko"]
[Result "0-1"]
[WhiteElo "2509"]
[BlackElo "2728"]
[TimeControl "180+1"]
[EndTime "10:38:11 PDT"]
[Termination "MiroVlasenko won on time"]

1. e4 {[%clk 0:03:00.9]} 1... Nf6 {[%clk 0:03:00.9]} 2. e5 {[%clk 0:03:00.7]}
2... Nd5 {[%clk 0:03:01]} 3. d4 {[%clk 0:03:01.3]} 3... d6 {[%clk 0:03:01.2]} 4.
c4 {[%clk 0:03:01.3]} 4... Nb6 {[%clk 0:03:01.1]} 5. exd6 {[%clk 0:03:01.3]}
5... exd6 {[%clk 0:03:02]} 6. Nc3 {[%clk 0:03:00.6]} 6... Be7 {[%clk 0:03:02]}
7. Be3 {[%clk 0:03:00.8]} 7... O-O {[%clk 0:02:59.2]} 8. Bd3 {[%clk 0:03:00.3]}
8... Bf6 {[%clk 0:02:57.1]} 9. Nge2 {[%clk 0:02:59.5]} 9... Nc6 {[%clk
0:02:54.5]} 10. b3 {[%clk 0:02:55.6]} 10... Bg4 {[%clk 0:02:50.8]} 11. Qd2
{[%clk 0:02:32]} 11... Bh5 {[%clk 0:02:33.5]} 12. O-O {[%clk 0:02:29.8]} 12...
Bg6 {[%clk 0:02:32.5]} 13. Bxg6 {[%clk 0:02:28.3]} 13... hxg6 {[%clk 0:02:32.5]}
14. d5 {[%clk 0:02:16.7]} 14... Ne5 {[%clk 0:02:28.5]} 15. h3 {[%clk 0:02:16.5]}
15... Re8 {[%clk 0:02:23.3]} 16. Ng3 {[%clk 0:02:08.8]} 16... Ned7 {[%clk
0:02:20.9]} 17. Rad1 {[%clk 0:02:02.2]} 17... Nc5 {[%clk 0:02:13.2]} 18. Rfe1
{[%clk 0:01:43.4]} 18... a5 {[%clk 0:02:12.7]} 19. Bxc5 {[%clk 0:01:29.3]} 19...
dxc5 {[%clk 0:02:11.2]} 20. Nge4 {[%clk 0:01:29.2]} 20... Nd7 {[%clk 0:01:55]}
21. Nxf6+ {[%clk 0:01:25.7]} 21... Qxf6 {[%clk 0:01:44.2]} 22. Rxe8+ {[%clk
0:01:24.9]} 22... Rxe8 {[%clk 0:01:38.2]} 23. Nb5 {[%clk 0:01:25.4]} 23... Qb6
{[%clk 0:01:28.2]} 24. Kh2 {[%clk 0:01:12.5]} 24... Nf6 {[%clk 0:01:17.1]} 25.
f3 {[%clk 0:00:56.4]} 25... Rd8 {[%clk 0:01:06.5]} 26. Qf4 {[%clk 0:00:54.3]}
26... c6 {[%clk 0:00:50.2]} 27. dxc6 {[%clk 0:00:33.8]} 27... Rxd1 {[%clk
0:00:47.9]} 28. c7 {[%clk 0:00:34]} 28... Qe6 {[%clk 0:00:28.3]} 29. Na7 {[%clk
0:00:28]} 29... Nh5 {[%clk 0:00:28.1]} 30. Qe4 {[%clk 0:00:02.2]} 30... Qd6+
{[%clk 0:00:26.3]} 31. f4 {[%clk 0:00:02.3]} 31... Qxc7 {[%clk 0:00:25.9]} 0-1

[Event "*** SCC Grand Prix: Titled Tuesday Blitz"]
[Site "Chess.com"]
[Date "2020.07.21"]
[Round "4"]
[White "Zkid"]
[Black "Bigfish1995"]
[Result "0-1"]
[WhiteElo "2794"]
[BlackElo "3026"]
[TimeControl "180+1"]
[EndTime "10:38:12 PDT"]
[Termination "Bigfish1995 won by resignation"]

1. e4 {[%clk 0:03:00.9]} 1... c6 {[%clk 0:02:59.5]} 2. d4 {[%clk 0:03:00]} 2...
d5 {[%clk 0:02:59.7]} 3. exd5 {[%clk 0:03:00.9]} 3... cxd5 {[%clk 0:02:59.6]} 4.
Bd3 {[%clk 0:03:01.1]} 4... Nc6 {[%clk 0:02:59.8]} 5. c3 {[%clk 0:03:01.6]} 5...
Qc7 {[%clk 0:03:00]} 6. Ne2 {[%clk 0:03:01.4]} 6... Bg4 {[%clk 0:02:58.9]} 7.
O-O {[%clk 0:03:00.7]} 7... e6 {[%clk 0:02:59.1]} 8. Qe1 {[%clk 0:03:00.7]} 8...
Nf6 {[%clk 0:02:58.3]} 9. f3 {[%clk 0:02:58.8]} 9... Bh5 {[%clk 0:02:57.7]} 10.
Qh4 {[%clk 0:02:59.3]} 10... Bg6 {[%clk 0:02:49.5]} 11. Bxg6 {[%clk 0:02:57.2]}
11... fxg6 {[%clk 0:02:50.4]} 12. Nd2 {[%clk 0:02:29.4]} 12... Bd6 {[%clk
0:02:48.4]} 13. Qh3 {[%clk 0:02:26.9]} 13... e5 {[%clk 0:02:07.4]} 14. dxe5
{[%clk 0:02:19.8]} 14... Bxe5 {[%clk 0:02:05.5]} 15. Qe6+ {[%clk 0:01:59.9]}
15... Kf8 {[%clk 0:02:05.2]} 16. Qh3 {[%clk 0:01:43.2]} 16... Re8 {[%clk
0:02:04.3]} 17. f4 {[%clk 0:01:28.2]} 17... Bd6 {[%clk 0:02:02.3]} 18. Qd3
{[%clk 0:01:23.5]} 18... Qb6+ {[%clk 0:01:57.8]} 19. Nd4 {[%clk 0:01:16.2]}
19... Nxd4 {[%clk 0:01:55.1]} 20. cxd4 {[%clk 0:01:15]} 20... Kf7 {[%clk
0:01:21.3]} 21. Nf3 {[%clk 0:01:09.6]} 21... Rhf8 {[%clk 0:01:21.2]} 22. Qb3
{[%clk 0:00:42]} 22... Qxb3 {[%clk 0:00:53.1]} 23. axb3 {[%clk 0:00:42.9]} 23...
a6 {[%clk 0:00:53.7]} 24. Ne5+ {[%clk 0:00:40.6]} 24... Ke6 {[%clk 0:00:53]} 25.
Bd2 {[%clk 0:00:28.1]} 25... Ne4 {[%clk 0:00:52.2]} 26. Ba5 {[%clk 0:00:27.1]}
26... g5 {[%clk 0:00:51.7]} 27. fxg5 {[%clk 0:00:11.2]} 27... Bxe5 {[%clk
0:00:51.6]} 28. dxe5 {[%clk 0:00:11.4]} 28... Rxf1+ {[%clk 0:00:47.1]} 29. Rxf1
{[%clk 0:00:10.7]} 29... Nxg5 {[%clk 0:00:47.6]} 30. Rc1 {[%clk 0:00:09.7]}
30... Ne4 {[%clk 0:00:45.2]} 31. Rc7 {[%clk 0:00:09.2]} 31... Re7 {[%clk
0:00:45.3]} 32. Rxe7+ {[%clk 0:00:04.1]} 32... Kxe7 {[%clk 0:00:45.5]} 33. Bb6
{[%clk 0:00:04.7]} 33... Ke6 {[%clk 0:00:42.9]} 34. Bd4 {[%clk 0:00:04.7]} 34...
Nd2 {[%clk 0:00:40.2]} 35. b4 {[%clk 0:00:05]} 35... Nb3 {[%clk 0:00:40.3]} 36.
Bb6 {[%clk 0:00:05.3]} 36... Kxe5 {[%clk 0:00:39.2]} 37. Kf2 {[%clk 0:00:06.2]}
37... Nd4 {[%clk 0:00:39.3]} 38. Bc5 {[%clk 0:00:04.1]} 38... Ke4 {[%clk
0:00:38.9]} 39. Be7 {[%clk 0:00:04.1]} 39... Nf5 {[%clk 0:00:35.8]} 40. Ke2
{[%clk 0:00:05]} 40... Nxe7 {[%clk 0:00:35.5]} 0-1

[Event "*** SCC Grand Prix: Titled Tuesday Blitz"]
[Site "Chess.com"]
[Date "2020.07.21"]
[Round "4"]
[White "MVM2008"]
[Black "Chopper1905"]
[Result "0-1"]
[WhiteElo "2184"]
[BlackElo "2889"]
[TimeControl "180+1"]
[EndTime "10:38:13 PDT"]
[Termination "Chopper1905 won by checkmate"]

1. e4 {[%clk 0:03:00.9]} 1... Nc6 {[%clk 0:02:58.9]} 2. Nf3 {[%clk 0:02:58.4]}
2... d6 {[%clk 0:02:56.1]} 3. Nc3 {[%clk 0:02:55.8]} 3... g6 {[%clk 0:02:55.5]}
4. d4 {[%clk 0:02:52.5]} 4... Bg7 {[%clk 0:02:55.9]} 5. Be2 {[%clk 0:02:51.6]}
5... Nf6 {[%clk 0:02:54.1]} 6. h3 {[%clk 0:02:48.3]} 6... O-O {[%clk 0:02:53.1]}
7. Be3 {[%clk 0:02:48]} 7... a6 {[%clk 0:02:51.3]} 8. Qd2 {[%clk 0:02:40.1]}
8... b5 {[%clk 0:02:42.5]} 9. d5 {[%clk 0:02:25.3]} 9... Na5 {[%clk 0:02:33.4]}
10. a3 {[%clk 0:02:12.5]} 10... c5 {[%clk 0:02:28.3]} 11. dxc6 {[%clk
0:02:01.7]} 11... Nxc6 {[%clk 0:02:26.3]} 12. Nd4 {[%clk 0:02:01.4]} 12... Bb7
{[%clk 0:02:24.7]} 13. Nxc6 {[%clk 0:01:55.9]} 13... Bxc6 {[%clk 0:02:21.4]} 14.
Bf3 {[%clk 0:01:50.5]} 14... Nd7 {[%clk 0:02:14.9]} 15. Bd4 {[%clk 0:01:36]}
15... Bxd4 {[%clk 0:02:07]} 16. Qxd4 {[%clk 0:01:35.7]} 16... Qb6 {[%clk
0:02:07.9]} 17. Qxb6 {[%clk 0:01:35.2]} 17... Nxb6 {[%clk 0:02:08.8]} 18. O-O
{[%clk 0:01:32.7]} 18... Nc4 {[%clk 0:02:07.7]} 19. b3 {[%clk 0:01:23.8]} 19...
Nd2 {[%clk 0:02:00.1]} 20. Rfd1 {[%clk 0:01:23.1]} 20... Nxf3+ {[%clk
0:02:00.5]} 21. gxf3 {[%clk 0:01:24]} 21... Rfc8 {[%clk 0:02:01.1]} 22. Rd2
{[%clk 0:01:19.2]} 22... Bb7 {[%clk 0:01:59.5]} 23. Nd5 {[%clk 0:01:18.9]} 23...
Bxd5 {[%clk 0:01:57.4]} 24. exd5 {[%clk 0:01:18]} 24... Rc3 {[%clk 0:01:57.9]}
25. Re1 {[%clk 0:01:15.4]} 25... Kf8 {[%clk 0:01:57]} 26. Re3 {[%clk 0:01:15.2]}
26... Rc5 {[%clk 0:01:48.5]} 27. Rde2 {[%clk 0:00:58.2]} 27... Ra7 {[%clk
0:01:48.6]} 28. Rd3 {[%clk 0:00:55.8]} 28... Rac7 {[%clk 0:01:48.5]} 29. Rdd2
{[%clk 0:00:50.2]} 29... Rc3 {[%clk 0:01:46.9]} 30. Kg2 {[%clk 0:00:49.5]} 30...
a5 {[%clk 0:01:44.4]} 31. Kg3 {[%clk 0:00:47]} 31... a4 {[%clk 0:01:40.2]} 32.
bxa4 {[%clk 0:00:23.5]} 32... bxa4 {[%clk 0:01:41.1]} 33. Re4 {[%clk 0:00:21.4]}
33... Rxa3 {[%clk 0:01:40.1]} 34. Rdd4 {[%clk 0:00:20.6]} 34... Rcc3 {[%clk
0:01:25.6]} 35. Rxa4 {[%clk 0:00:14.6]} 35... Rxf3+ {[%clk 0:01:25.1]} 36. Kg2
{[%clk 0:00:13.5]} 36... Rxh3 {[%clk 0:01:23]} 37. Rab4 {[%clk 0:00:10.4]} 37...
Rh5 {[%clk 0:01:12.9]} 38. Rb8+ {[%clk 0:00:08.9]} 38... Kg7 {[%clk 0:01:13.5]}
39. Rxe7 {[%clk 0:00:08.9]} 39... Rxd5 {[%clk 0:01:14]} 40. Rbb7 {[%clk
0:00:08.8]} 40... Rf5 {[%clk 0:01:14.2]} 41. Red7 {[%clk 0:00:07.8]} 41... Rc3
{[%clk 0:01:11.1]} 42. Rxd6 {[%clk 0:00:07.5]} 42... Rxc2 {[%clk 0:01:11.2]} 43.
Rdd7 {[%clk 0:00:05.5]} 43... Rcxf2+ {[%clk 0:01:11.5]} 44. Kg3 {[%clk
0:00:05.4]} 44... h5 {[%clk 0:01:09.2]} 45. Kh3 {[%clk 0:00:03.6]} 45... R5f3+
{[%clk 0:01:06.7]} 46. Kh4 {[%clk 0:00:03.7]} 46... Rh2+ {[%clk 0:01:07.2]} 47.
Kg5 {[%clk 0:00:03.5]} 47... Rf5# {[%clk 0:01:07.9]} 0-1

[Event "*** SCC Grand Prix: Titled Tuesday Blitz"]
[Site "Chess.com"]
[Date "2020.07.21"]
[Round "4"]
[White "BikingBrian"]
[Black "Giraffe_Chess"]
[Result "1-0"]
[WhiteElo "2222"]
[BlackElo "2396"]
[TimeControl "180+1"]
[EndTime "10:38:13 PDT"]
[Termination "BikingBrian won on time"]

1. d4 {[%clk 0:03:00.9]} 1... f5 {[%clk 0:02:59.5]} 2. Nc3 {[%clk 0:03:00.5]}
2... Nf6 {[%clk 0:02:59.6]} 3. Bg5 {[%clk 0:02:59.7]} 3... d5 {[%clk 0:02:59.9]}
4. e3 {[%clk 0:02:57.3]} 4... Nbd7 {[%clk 0:02:58.1]} 5. Nf3 {[%clk 0:02:54.4]}
5... a6 {[%clk 0:02:57.4]} 6. Bd3 {[%clk 0:02:53.8]} 6... e6 {[%clk 0:02:56.6]}
7. O-O {[%clk 0:02:52]} 7... Bd6 {[%clk 0:02:53.4]} 8. Ne2 {[%clk 0:02:46.8]}
8... O-O {[%clk 0:02:49.4]} 9. c4 {[%clk 0:02:46.2]} 9... c6 {[%clk 0:02:45.4]}
10. cxd5 {[%clk 0:02:35]} 10... cxd5 {[%clk 0:02:37.6]} 11. Bf4 {[%clk
0:02:34.2]} 11... Qe7 {[%clk 0:02:27.4]} 12. Rc1 {[%clk 0:02:11]} 12... Ne4
{[%clk 0:02:27]} 13. Ne5 {[%clk 0:02:06.5]} 13... Bxe5 {[%clk 0:02:16.3]} 14.
Bxe5 {[%clk 0:02:03.8]} 14... Nxe5 {[%clk 0:02:14.3]} 15. dxe5 {[%clk
0:02:03.8]} 15... Nc5 {[%clk 0:02:00.6]} 16. f4 {[%clk 0:01:50.3]} 16... Bd7
{[%clk 0:01:57.7]} 17. Nd4 {[%clk 0:01:45.2]} 17... Rfc8 {[%clk 0:01:56]} 18. a3
{[%clk 0:01:34.2]} 18... Qe8 {[%clk 0:01:42.1]} 19. b4 {[%clk 0:01:24.4]} 19...
Na4 {[%clk 0:01:36.5]} 20. Rxc8 {[%clk 0:01:00.8]} 20... Rxc8 {[%clk 0:01:37.4]}
21. g4 {[%clk 0:01:00.2]} 21... Nb2 {[%clk 0:01:15.3]} 22. Qe2 {[%clk
0:00:56.8]} 22... Nxd3 {[%clk 0:01:09.7]} 23. Qxd3 {[%clk 0:00:57.7]} 23... fxg4
{[%clk 0:01:06.8]} 24. e4 {[%clk 0:00:51]} 24... dxe4 {[%clk 0:00:53.6]} 25.
Qxe4 {[%clk 0:00:51.2]} 25... Bc6 {[%clk 0:00:53.6]} 26. Qe2 {[%clk 0:00:45.2]}
26... Qg6 {[%clk 0:00:19.8]} 27. f5 {[%clk 0:00:37.7]} 27... exf5 {[%clk
0:00:20.7]} 28. Nxf5 {[%clk 0:00:36.3]} 28... Re8 {[%clk 0:00:20.4]} 29. Qc4+
{[%clk 0:00:27.2]} 29... Qe6 {[%clk 0:00:19.7]} 30. Qxg4 {[%clk 0:00:21.5]}
30... g6 {[%clk 0:00:05.4]} 31. Nh6+ {[%clk 0:00:19.5]} 31... Kh8 {[%clk
0:00:03.3]} 32. Rf8+ {[%clk 0:00:19.4]} 32... Kg7 {[%clk 0:00:02.5]} 33. Rg8+
{[%clk 0:00:17]} 1-0